[Event "Titled Tuesday Blitz December 13 Early 2022"]
[White "Kovacsy, Barnabas"]
[Black "Iskusnyh, Sergei"]
[WhiteFideId "769290"]
[BlackFideId "4120027"]
[WhiteElo "2130"]
[BlackElo "2492"]
[Result "0-1"]
[Round "01"]
[TimeControl "180+1"]
[Date "2022.12.14"]
[WhiteClock "0:02:18"]
[BlackClock "0:02:02"]

1. e4 {[%clk 0:02:59]}  e6 {[%clk 0:02:59]} 2. d4 {[%clk 0:02:56]}  d5 {[%clk 0:02:57]} 3. exd5 {[%clk 0:02:55]}  exd5 {[%clk 0:02:57]} 4. Nf3 {[%clk 0:02:55]}  Nf6 {[%clk 0:02:55]} 5. Bd3 {[%clk 0:02:47]}  c5 {[%clk 0:02:55]} 6. c3 {[%clk 0:02:42]}  Nc6 {[%clk 0:02:52]} 7. O-O {[%clk 0:02:41]}  Be7 {[%clk 0:02:51]} 8. Re1 {[%clk 0:02:38]}  O-O {[%clk 0:02:50]} 9. Bf4 {[%clk 0:02:37]}  Bg4 {[%clk 0:02:48]} 10. h3 {[%clk 0:02:37]}  Bh5 {[%clk 0:02:48]} 11. dxc5 {[%clk 0:02:29]}  Bxc5 {[%clk 0:02:47]} 12. Qc2 {[%clk 0:02:29]}  Rc8 {[%clk 0:02:43]} 13. Nbd2 {[%clk 0:02:28]}  Bb6 {[%clk 0:02:22]} 14. Bg5 {[%clk 0:02:22]}  h6 {[%clk 0:02:04]} 15. Bh4 {[%clk 0:02:18]}  Nb4 {[%clk 0:02:02]} 0-1


[Site "https://www.chess.com"]

[Event "Titled Tuesday Blitz December 13 Early 2022"]
[White "Kuchava, Ana"]
[Black "Ashraf, Artin"]
[WhiteFideId "13605348"]
[BlackFideId "22514805"]
[WhiteElo "2001"]
[BlackElo "2243"]
[Result "0-1"]
[Round "01"]
[TimeControl "180+1"]
[Date "2022.12.14"]
[WhiteClock "0:00:09"]
[BlackClock "0:00:08"]

1. d4 {[%clk 0:02:54]}  Nf6 {[%clk 0:02:58]} 2. Nf3 {[%clk 0:02:49]}  d6 {[%clk 0:02:57]} 3. c4 {[%clk 0:02:46]}  Nbd7 {[%clk 0:02:56]} 4. Nc3 {[%clk 0:02:45]}  e5 {[%clk 0:02:56]} 5. e4 {[%clk 0:02:43]}  c6 {[%clk 0:02:53]} 6. Be2 {[%clk 0:02:36]}  exd4 {[%clk 0:02:50]} 7. Nxd4 {[%clk 0:02:33]}  Nc5 {[%clk 0:02:49]} 8. f3 {[%clk 0:02:23]}  g6 {[%clk 0:02:41]} 9. O-O {[%clk 0:02:19]}  Bg7 {[%clk 0:02:40]} 10. Be3 {[%clk 0:02:09]}  O-O {[%clk 0:02:39]} 11. Qd2 {[%clk 0:02:06]}  Qe7 {[%clk 0:02:34]} 12. Rfe1 {[%clk 0:02:00]}  Rd8 {[%clk 0:02:33]} 13. Rad1 {[%clk 0:01:56]}  a5 {[%clk 0:02:32]} 14. Bf1 {[%clk 0:01:55]}  Be6 {[%clk 0:02:25]} 15. Nb3 {[%clk 0:01:26]}  b6 {[%clk 0:01:46]} 16. Nxc5 {[%clk 0:01:18]}  bxc5 {[%clk 0:01:43]} 17. Bf4 {[%clk 0:01:16]}  Ne8 {[%clk 0:01:21]} 18. Kh1 {[%clk 0:01:15]}  a4 {[%clk 0:01:13]} 19. Qc2 {[%clk 0:01:04]}  Qa7 {[%clk 0:01:09]} 20. e5 {[%clk 0:00:41]}  dxe5 {[%clk 0:00:59]} 21. Bxe5 {[%clk 0:00:40]}  Rxd1 {[%clk 0:00:54]} 22. Qxd1 {[%clk 0:00:36]}  Bxe5 {[%clk 0:00:51]} 23. Rxe5 {[%clk 0:00:37]}  Qb8 {[%clk 0:00:51]} 24. Qe2 {[%clk 0:00:33]}  Qd6 {[%clk 0:00:44]} 25. Qe3 {[%clk 0:00:25]}  Qd4 {[%clk 0:00:37]} 26. Ne2 {[%clk 0:00:13]}  Qxe3 {[%clk 0:00:24]} 27. Rxe3 {[%clk 0:00:12]}  Bxc4 {[%clk 0:00:25]} 28. Rc3 {[%clk 0:00:11]}  Bxa2 {[%clk 0:00:20]} 29. Rxc5 {[%clk 0:00:10]}  Bd5 {[%clk 0:00:16]} 30. Kg1 {[%clk 0:00:10]}  Rb8 {[%clk 0:00:15]} 31. Nc3 {[%clk 0:00:08]}  Rxb2 {[%clk 0:00:14]} 32. Nxd5 {[%clk 0:00:08]}  cxd5 {[%clk 0:00:14]} 33. Rxd5 {[%clk 0:00:09]}  a3 {[%clk 0:00:12]} 34. Ra5 {[%clk 0:00:08]}  a2 {[%clk 0:00:11]} 35. Ra8 {[%clk 0:00:07]}  Kg7 {[%clk 0:00:10]} 36. h3 {[%clk 0:00:07]}  Nd6 {[%clk 0:00:09]} 37. Kh2 {[%clk 0:00:07]}  Nf5 {[%clk 0:00:07]} 38. Bc4 {[%clk 0:00:07]}  Ne3 {[%clk 0:00:08]} 39. Bxa2 {[%clk 0:00:07]}  Rxg2+ {[%clk 0:00:08]} 40. Kh1 {[%clk 0:00:08]}  Rg3 {[%clk 0:00:08]} 41. Ra7 {[%clk 0:00:08]}  Rxh3+ {[%clk 0:00:08]} 42. Kg1 {[%clk 0:00:08]}  Rxf3 {[%clk 0:00:09]} 43. Ra3 {[%clk 0:00:08]}  Rf1+ {[%clk 0:00:09]} 44. Kh2 {[%clk 0:00:08]}  Ng4+ {[%clk 0:00:09]} 45. Kg2 {[%clk 0:00:07]}  Rf6 {[%clk 0:00:09]} 46. Ra7 {[%clk 0:00:07]}  h5 {[%clk 0:00:09]} 47. Kg3 {[%clk 0:00:08]}  Ne3 {[%clk 0:00:09]} 48. Bb3 {[%clk 0:00:08]}  Nf5+ {[%clk 0:00:09]} 49. Kg2 {[%clk 0:00:08]}  g5 {[%clk 0:00:09]} 50. Kh2 {[%clk 0:00:07]}  g4 {[%clk 0:00:09]} 51. Kg2 {[%clk 0:00:08]}  Kg6 {[%clk 0:00:09]} 52. Bc2 {[%clk 0:00:08]}  Kg5 {[%clk 0:00:09]} 53. Ra5 {[%clk 0:00:08]}  h4 {[%clk 0:00:09]} 54. Kh2 {[%clk 0:00:09]}  Kf4 {[%clk 0:00:07]} 55. Kg2 {[%clk 0:00:09]}  Ne3+ {[%clk 0:00:07]} 56. Kf2 {[%clk 0:00:09]}  Nxc2 {[%clk 0:00:07]} 57. Ke2 {[%clk 0:00:10]}  Nd4+ {[%clk 0:00:07]} 58. Kd3 {[%clk 0:00:09]}  Nf3 {[%clk 0:00:08]} 59. Ra4+ {[%clk 0:00:09]}  Kg3 {[%clk 0:00:08]} 0-1


[Site "https://www.chess.com"]

[Event "Titled Tuesday Blitz December 13 Early 2022"]
[White "Kuderinov, Kirill"]
[Black "Todorovic, Bojan"]
[WhiteFideId "13701568"]
[BlackFideId "917087"]
[WhiteElo "2459"]
[BlackElo "2266"]
[Result "0-1"]
[Round "01"]
[TimeControl "180+1"]
[Date "2022.12.14"]
[WhiteClock "0:01:05"]
[BlackClock "0:01:14"]

1. e4 {[%clk 0:03:00]}  g6 {[%clk 0:02:58]} 2. d4 {[%clk 0:02:59]}  Bg7 {[%clk 0:02:58]} 3. Nf3 {[%clk 0:03:00]}  d6 {[%clk 0:02:57]} 4. Nc3 {[%clk 0:02:59]}  a6 {[%clk 0:02:57]} 5. Be2 {[%clk 0:02:57]}  Nd7 {[%clk 0:02:56]} 6. O-O {[%clk 0:02:57]}  b5 {[%clk 0:02:54]} 7. a4 {[%clk 0:02:47]}  b4 {[%clk 0:02:53]} 8. Nd5 {[%clk 0:02:43]}  Bb7 {[%clk 0:02:53]} 9. Bd3 {[%clk 0:02:39]}  c5 {[%clk 0:02:51]} 10. c3 {[%clk 0:02:31]}  e6 {[%clk 0:02:44]} 11. Nf4 {[%clk 0:02:24]}  Ngf6 {[%clk 0:02:34]} 12. Re1 {[%clk 0:02:21]}  O-O {[%clk 0:02:33]} 13. h3 {[%clk 0:02:14]}  cxd4 {[%clk 0:02:23]} 14. cxd4 {[%clk 0:02:13]}  e5 {[%clk 0:02:24]} 15. Ne2 {[%clk 0:01:45]}  Nxe4 {[%clk 0:02:17]} 16. Bxe4 {[%clk 0:01:42]}  Bxe4 {[%clk 0:02:16]} 17. Ng3 {[%clk 0:01:42]}  Bxf3 {[%clk 0:02:12]} 18. Qxf3 {[%clk 0:01:43]}  exd4 {[%clk 0:02:09]} 19. Qd5 {[%clk 0:01:38]}  Nb6 {[%clk 0:01:57]} 20. Qb3 {[%clk 0:01:37]}  a5 {[%clk 0:01:57]} 21. Ne4 {[%clk 0:01:28]}  d5 {[%clk 0:01:53]} 22. Bg5 {[%clk 0:01:23]}  Qd7 {[%clk 0:01:38]} 23. Nf6+ {[%clk 0:01:22]}  Bxf6 {[%clk 0:01:38]} 24. Bxf6 {[%clk 0:01:22]}  Rfe8 {[%clk 0:01:32]} 25. Bxd4 {[%clk 0:01:18]}  Nc4 {[%clk 0:01:32]} 26. Qd3 {[%clk 0:01:06]}  Qf5 {[%clk 0:01:28]} 27. Qd2 {[%clk 0:01:05]}  Nxd2 {[%clk 0:01:14]} 0-1


[Site "https://www.chess.com"]

[Event "Titled Tuesday Blitz December 13 Early 2022"]
[White "Lacasa Diaz, Jose Antonio"]
[Black "Danielyan, Vahe"]
[WhiteFideId "2203375"]
[BlackFideId "13304828"]
[WhiteElo "2338"]
[BlackElo "2423"]
[Result "1-0"]
[Round "01"]
[TimeControl "180+1"]
[Date "2022.12.14"]
[WhiteClock "0:00:19"]
[BlackClock "0:00:05"]

1. e4 {[%clk 0:02:56]}  e5 {[%clk 0:02:59]} 2. Nf3 {[%clk 0:02:55]}  d6 {[%clk 0:02:59]} 3. Bc4 {[%clk 0:02:53]}  Be7 {[%clk 0:02:58]} 4. O-O {[%clk 0:02:53]}  Nf6 {[%clk 0:02:57]} 5. d3 {[%clk 0:02:52]}  O-O {[%clk 0:02:57]} 6. Re1 {[%clk 0:02:52]}  c6 {[%clk 0:02:57]} 7. Bb3 {[%clk 0:02:51]}  Bg4 {[%clk 0:02:56]} 8. Nbd2 {[%clk 0:02:51]}  Nbd7 {[%clk 0:02:56]} 9. h3 {[%clk 0:02:51]}  Bh5 {[%clk 0:02:55]} 10. Nf1 {[%clk 0:02:43]}  Nc5 {[%clk 0:02:55]} 11. Ng3 {[%clk 0:02:43]}  Bg6 {[%clk 0:02:54]} 12. Nh4 {[%clk 0:02:18]}  a5 {[%clk 0:02:52]} 13. c3 {[%clk 0:02:13]}  Nxb3 {[%clk 0:02:45]} 14. axb3 {[%clk 0:02:00]}  Re8 {[%clk 0:02:43]} 15. Nhf5 {[%clk 0:01:58]}  Bf8 {[%clk 0:02:42]} 16. Qf3 {[%clk 0:01:44]}  d5 {[%clk 0:02:39]} 17. Bg5 {[%clk 0:01:40]}  Re6 {[%clk 0:02:32]} 18. c4 {[%clk 0:01:26]}  dxe4 {[%clk 0:02:23]} 19. dxe4 {[%clk 0:01:26]}  h6 {[%clk 0:02:23]} 20. Rad1 {[%clk 0:01:21]}  hxg5 {[%clk 0:02:19]} 21. Rxd8 {[%clk 0:01:20]}  Rxd8 {[%clk 0:02:20]} 22. Rd1 {[%clk 0:01:15]}  Rxd1+ {[%clk 0:02:08]} 23. Qxd1 {[%clk 0:01:16]}  Bxf5 {[%clk 0:02:03]} 24. exf5 {[%clk 0:01:13]}  Rd6 {[%clk 0:02:03]} 25. Qe2 {[%clk 0:01:14]}  Rd8 {[%clk 0:01:43]} 26. Qxe5 {[%clk 0:01:07]}  g4 {[%clk 0:01:43]} 27. Qe2 {[%clk 0:00:59]}  gxh3 {[%clk 0:01:38]} 28. gxh3 {[%clk 0:01:00]}  Bc5 {[%clk 0:01:38]} 29. Kg2 {[%clk 0:00:58]}  Bd4 {[%clk 0:01:30]} 30. Qe7 {[%clk 0:00:52]}  Rd7 {[%clk 0:01:26]} 31. Qe2 {[%clk 0:00:52]}  Kf8 {[%clk 0:01:17]} 32. h4 {[%clk 0:00:52]}  Re7 {[%clk 0:01:15]} 33. Qd2 {[%clk 0:00:52]}  c5 {[%clk 0:01:16]} 34. Qxa5 {[%clk 0:00:50]}  Ng4 {[%clk 0:01:12]} 35. Qa8+ {[%clk 0:00:42]}  Re8 {[%clk 0:01:11]} 36. Qxb7 {[%clk 0:00:42]}  Nxf2 {[%clk 0:01:10]} 37. b4 {[%clk 0:00:39]}  Ng4 {[%clk 0:00:52]} 38. bxc5 {[%clk 0:00:38]}  Bxc5 {[%clk 0:00:51]} 39. b4 {[%clk 0:00:38]}  Bd4 {[%clk 0:00:48]} 40. Qd7 {[%clk 0:00:33]}  Be5 {[%clk 0:00:40]} 41. c5 {[%clk 0:00:32]}  Nf6 {[%clk 0:00:37]} 42. Qd3 {[%clk 0:00:31]}  Ra8 {[%clk 0:00:34]} 43. b5 {[%clk 0:00:28]}  Ng4 {[%clk 0:00:30]} 44. b6 {[%clk 0:00:25]}  Ra2+ {[%clk 0:00:29]} 45. Kf3 {[%clk 0:00:25]}  Nh2+ {[%clk 0:00:26]} 46. Ke4 {[%clk 0:00:25]}  f6 {[%clk 0:00:21]} 47. c6 {[%clk 0:00:23]}  Ng4 {[%clk 0:00:13]} 48. Qd8+ {[%clk 0:00:19]}  Kf7 {[%clk 0:00:14]} 49. c7 {[%clk 0:00:19]}  Ra4+ {[%clk 0:00:13]} 50. Kf3 {[%clk 0:00:18]}  Rf4+ {[%clk 0:00:13]} 51. Ke2 {[%clk 0:00:18]}  Rf2+ {[%clk 0:00:13]} 52. Ke1 {[%clk 0:00:18]}  Bxg3 {[%clk 0:00:14]} 53. Qd7+ {[%clk 0:00:18]}  Kg8 {[%clk 0:00:14]} 54. c8=Q+ {[%clk 0:00:19]}  Kh7 {[%clk 0:00:15]} 55. Qce8 {[%clk 0:00:19]}  Rf4+ {[%clk 0:00:13]} 56. Kd1 {[%clk 0:00:19]}  Nf2+ {[%clk 0:00:12]} 57. Kc1 {[%clk 0:00:20]}  Rc4+ {[%clk 0:00:12]} 58. Kb2 {[%clk 0:00:19]}  Rb4+ {[%clk 0:00:06]} 59. Ka3 {[%clk 0:00:19]}  Rxh4 {[%clk 0:00:05]} 60. Qg6+ {[%clk 0:00:18]}  Kh8 {[%clk 0:00:05]} 61. Qde8# {[%clk 0:00:19]} 1-0


[Site "https://www.chess.com"]

[Event "Titled Tuesday Blitz December 13 Early 2022"]
[White "Lehtosaari, Mauri"]
[Black "Bluebaum, Matthias"]
[WhiteFideId "501999"]
[BlackFideId "24651516"]
[WhiteElo "2514"]
[BlackElo "2634"]
[Result "0-1"]
[Round "01"]
[TimeControl "180+1"]
[Date "2022.12.13"]
[WhiteClock "0:00:24"]
[BlackClock "0:00:49"]

1. d4 {[%clk 0:02:58]}  d5 {[%clk 0:02:59]} 2. Nf3 {[%clk 0:02:57]}  Nf6 {[%clk 0:02:59]} 3. Bg5 {[%clk 0:02:57]}  Ne4 {[%clk 0:02:59]} 4. Bf4 {[%clk 0:02:57]}  c5 {[%clk 0:02:59]} 5. e3 {[%clk 0:02:57]}  Nc6 {[%clk 0:03:00]} 6. c3 {[%clk 0:02:56]}  Qb6 {[%clk 0:02:59]} 7. Qb3 {[%clk 0:02:56]}  c4 {[%clk 0:02:59]} 8. Qxb6 {[%clk 0:02:56]}  axb6 {[%clk 0:03:00]} 9. Nfd2 {[%clk 0:02:56]}  Nxd2 {[%clk 0:02:54]} 10. Nxd2 {[%clk 0:02:57]}  b5 {[%clk 0:02:55]} 11. e4 {[%clk 0:02:56]}  e6 {[%clk 0:02:56]} 12. Be2 {[%clk 0:02:55]}  b4 {[%clk 0:02:45]} 13. Bf3 {[%clk 0:02:54]}  bxc3 {[%clk 0:02:46]} 14. bxc3 {[%clk 0:02:54]}  Ra5 {[%clk 0:02:44]} 15. Bc7 {[%clk 0:02:45]}  Ra3 {[%clk 0:02:30]} 16. Nb1 {[%clk 0:02:39]}  Ra4 {[%clk 0:02:25]} 17. exd5 {[%clk 0:02:37]}  exd5 {[%clk 0:02:26]} 18. Bxd5 {[%clk 0:02:37]}  Be6 {[%clk 0:02:26]} 19. Bxe6 {[%clk 0:02:33]}  fxe6 {[%clk 0:02:27]} 20. O-O {[%clk 0:02:31]}  Kd7 {[%clk 0:02:27]} 21. Bg3 {[%clk 0:02:29]}  Be7 {[%clk 0:02:24]} 22. Nd2 {[%clk 0:02:25]}  Rha8 {[%clk 0:02:20]} 23. Rfb1 {[%clk 0:02:20]}  Kc8 {[%clk 0:02:20]} 24. h3 {[%clk 0:02:12]}  R8a5 {[%clk 0:02:14]} 25. Rb6 {[%clk 0:01:54]}  Bd8 {[%clk 0:02:10]} 26. Rb2 {[%clk 0:01:53]}  b5 {[%clk 0:02:05]} 27. Ne4 {[%clk 0:01:13]}  Be7 {[%clk 0:02:05]} 28. Bd6 {[%clk 0:01:11]}  Bxd6 {[%clk 0:01:28]} 29. Nxd6+ {[%clk 0:01:11]}  Kd7 {[%clk 0:01:29]} 30. Nxb5 {[%clk 0:01:09]}  Ne7 {[%clk 0:01:29]} 31. g3 {[%clk 0:00:43]}  Kc6 {[%clk 0:01:28]} 32. d5+ {[%clk 0:00:38]}  Nxd5 {[%clk 0:01:08]} 33. Nd4+ {[%clk 0:00:38]}  Kd6 {[%clk 0:01:08]} 34. Re1 {[%clk 0:00:35]}  e5 {[%clk 0:01:04]} 35. Nf5+ {[%clk 0:00:35]}  Kc6 {[%clk 0:00:49]} 36. Rxe5 {[%clk 0:00:29]}  Nxc3 {[%clk 0:00:49]} 37. Rb8 {[%clk 0:00:24]}  Rxe5 {[%clk 0:00:49]} 0-1


[Site "https://www.chess.com"]

[Event "Titled Tuesday Blitz December 13 Early 2022"]
[White "Lewicki, Miroslaw"]
[Black "Buscar, Michael"]
[WhiteFideId "1113380"]
[BlackFideId "2603616"]
[WhiteElo "2191"]
[BlackElo "2010"]
[Result "1-0"]
[Round "01"]
[TimeControl "180+1"]
[Date "2022.12.14"]
[WhiteClock "0:00:32"]
[BlackClock "0:00:16"]

1. e4 {[%clk 0:02:58]}  c5 {[%clk 0:02:58]} 2. Nf3 {[%clk 0:02:58]}  Nc6 {[%clk 0:02:57]} 3. Nc3 {[%clk 0:02:58]}  Nf6 {[%clk 0:02:57]} 4. Bb5 {[%clk 0:02:58]}  g6 {[%clk 0:02:56]} 5. O-O {[%clk 0:02:48]}  Bg7 {[%clk 0:02:50]} 6. Re1 {[%clk 0:02:45]}  O-O {[%clk 0:02:43]} 7. h3 {[%clk 0:02:43]}  Ne8 {[%clk 0:02:28]} 8. d3 {[%clk 0:02:26]}  Nc7 {[%clk 0:02:26]} 9. Bxc6 {[%clk 0:02:24]}  bxc6 {[%clk 0:02:24]} 10. e5 {[%clk 0:02:21]}  d6 {[%clk 0:02:22]} 11. Bf4 {[%clk 0:02:21]}  Ne6 {[%clk 0:02:20]} 12. Bg3 {[%clk 0:02:21]}  Nd4 {[%clk 0:02:17]} 13. b3 {[%clk 0:02:15]}  Nxf3+ {[%clk 0:01:45]} 14. Qxf3 {[%clk 0:02:14]}  d5 {[%clk 0:01:44]} 15. Na4 {[%clk 0:02:12]}  Qa5 {[%clk 0:01:37]} 16. Bh4 {[%clk 0:02:00]}  Re8 {[%clk 0:01:29]} 17. c4 {[%clk 0:01:52]}  Be6 {[%clk 0:01:23]} 18. Rad1 {[%clk 0:01:35]}  dxc4 {[%clk 0:01:14]} 19. dxc4 {[%clk 0:01:35]}  Bxc4 {[%clk 0:01:14]} 20. Qxc6 {[%clk 0:01:17]}  Rac8 {[%clk 0:01:05]} 21. Qb7 {[%clk 0:01:14]}  Rcd8 {[%clk 0:00:59]} 22. Bxe7 {[%clk 0:01:11]}  Rxd1 {[%clk 0:00:50]} 23. Rxd1 {[%clk 0:01:11]}  Bxe5 {[%clk 0:00:51]} 24. Bxc5 {[%clk 0:00:55]}  Be2 {[%clk 0:00:42]} 25. Rb1 {[%clk 0:00:47]}  a6 {[%clk 0:00:41]} 26. Qd7 {[%clk 0:00:43]}  Qd8 {[%clk 0:00:36]} 27. Qxd8 {[%clk 0:00:41]}  Rxd8 {[%clk 0:00:36]} 28. Re1 {[%clk 0:00:41]}  Rd1 {[%clk 0:00:36]} 29. Rxd1 {[%clk 0:00:41]}  Bxd1 {[%clk 0:00:37]} 30. Be3 {[%clk 0:00:40]}  Be2 {[%clk 0:00:36]} 31. Nc5 {[%clk 0:00:40]}  Bc3 {[%clk 0:00:30]} 32. f3 {[%clk 0:00:37]}  Kf8 {[%clk 0:00:23]} 33. Kf2 {[%clk 0:00:37]}  Bb5 {[%clk 0:00:22]} 34. a4 {[%clk 0:00:36]}  Bc6 {[%clk 0:00:19]} 35. Nxa6 {[%clk 0:00:36]}  Bd5 {[%clk 0:00:17]} 36. b4 {[%clk 0:00:34]}  Ke8 {[%clk 0:00:16]} 37. Nc7+ {[%clk 0:00:32]} 1-0


[Site "https://www.chess.com"]

[Event "Titled Tuesday Blitz December 13 Early 2022"]
[White "Makhmudov, Shukhrat"]
[Black "Ambartsumova, Karina"]
[WhiteFideId "14200775"]
[BlackFideId "4166299"]
[WhiteElo "2135"]
[BlackElo "2319"]
[Result "0-1"]
[Round "01"]
[TimeControl "180+1"]
[Date "2022.12.14"]
[WhiteClock "0:00:08"]
[BlackClock "0:00:13"]

1. e4 {[%clk 0:02:56]}  e5 {[%clk 0:02:59]} 2. Nf3 {[%clk 0:02:45]}  Nc6 {[%clk 0:02:59]} 3. Bc4 {[%clk 0:02:37]}  Nf6 {[%clk 0:02:58]} 4. Ng5 {[%clk 0:02:34]}  d5 {[%clk 0:02:57]} 5. exd5 {[%clk 0:02:34]}  Na5 {[%clk 0:02:57]} 6. d3 {[%clk 0:02:35]}  h6 {[%clk 0:02:44]} 7. Nf3 {[%clk 0:02:33]}  e4 {[%clk 0:02:25]} 8. Qe2 {[%clk 0:02:33]}  Nxc4 {[%clk 0:02:21]} 9. dxc4 {[%clk 0:02:34]}  Bg4 {[%clk 0:02:22]} 10. h3 {[%clk 0:02:32]}  Bh5 {[%clk 0:02:13]} 11. g4 {[%clk 0:02:30]}  Bg6 {[%clk 0:02:13]} 12. Ne5 {[%clk 0:02:30]}  Bb4+ {[%clk 0:01:59]} 13. c3 {[%clk 0:02:29]}  Bd6 {[%clk 0:01:59]} 14. Nxg6 {[%clk 0:02:28]}  fxg6 {[%clk 0:02:00]} 15. g5 {[%clk 0:02:19]}  hxg5 {[%clk 0:01:50]} 16. Bxg5 {[%clk 0:02:19]}  Qe7 {[%clk 0:01:33]} 17. Nd2 {[%clk 0:02:13]}  O-O-O {[%clk 0:01:33]} 18. O-O-O {[%clk 0:02:11]}  Rde8 {[%clk 0:01:28]} 19. Rde1 {[%clk 0:02:05]}  Qd7 {[%clk 0:01:18]} 20. Bxf6 {[%clk 0:01:58]}  gxf6 {[%clk 0:01:19]} 21. Qg4 {[%clk 0:01:39]}  Qxg4 {[%clk 0:00:45]} 22. hxg4 {[%clk 0:01:39]}  f5 {[%clk 0:00:41]} 23. gxf5 {[%clk 0:01:34]}  gxf5 {[%clk 0:00:42]} 24. Rxh8 {[%clk 0:01:27]}  Rxh8 {[%clk 0:00:43]} 25. f3 {[%clk 0:01:27]}  Bf4 {[%clk 0:00:37]} 26. fxe4 {[%clk 0:01:19]}  Rh2 {[%clk 0:00:35]} 27. Rd1 {[%clk 0:01:15]}  fxe4 {[%clk 0:00:31]} 28. Kc2 {[%clk 0:00:22]}  e3 {[%clk 0:00:30]} 29. Kd3 {[%clk 0:00:22]}  Rxd2+ {[%clk 0:00:29]} 30. Rxd2 {[%clk 0:00:22]}  exd2 {[%clk 0:00:30]} 31. Ke2 {[%clk 0:00:22]}  Kd7 {[%clk 0:00:31]} 32. b4 {[%clk 0:00:22]}  Kd6 {[%clk 0:00:30]} 33. a4 {[%clk 0:00:21]}  a6 {[%clk 0:00:27]} 34. Kd1 {[%clk 0:00:19]}  Bg5 {[%clk 0:00:24]} 35. Ke2 {[%clk 0:00:19]}  Bh6 {[%clk 0:00:17]} 36. Kd1 {[%clk 0:00:19]}  b6 {[%clk 0:00:15]} 37. Ke2 {[%clk 0:00:18]}  Ke5 {[%clk 0:00:15]} 38. Kd1 {[%clk 0:00:14]}  Bg5 {[%clk 0:00:14]} 39. Ke2 {[%clk 0:00:14]}  Ke4 {[%clk 0:00:14]} 40. d6 {[%clk 0:00:08]}  cxd6 {[%clk 0:00:13]} 41. a5 {[%clk 0:00:06]}  bxa5 {[%clk 0:00:13]} 42. b5 {[%clk 0:00:06]}  axb5 {[%clk 0:00:11]} 43. cxb5 {[%clk 0:00:07]}  Kd5 {[%clk 0:00:12]} 44. c4+ {[%clk 0:00:07]}  Kc5 {[%clk 0:00:12]} 45. Kd1 {[%clk 0:00:08]}  a4 {[%clk 0:00:12]} 46. Kc2 {[%clk 0:00:09]}  a3 {[%clk 0:00:13]} 47. Kb3 {[%clk 0:00:08]}  d1=Q+ {[%clk 0:00:13]} 0-1


[Site "https://www.chess.com"]

[Event "Titled Tuesday Blitz December 13 Early 2022"]
[White "Makhnev, Denis"]
[Black "Manukian, Artak"]
[WhiteFideId "13707647"]
[BlackFideId "13301373"]
[WhiteElo "2507"]
[BlackElo "2130"]
[Result "0-1"]
[Round "01"]
[TimeControl "180+1"]
[Date "2022.12.13"]
[WhiteClock "0:00:01"]
[BlackClock "0:00:44"]

1. d4 {[%clk 0:02:57]}  d5 {[%clk 0:02:59]} 2. c4 {[%clk 0:02:56]}  dxc4 {[%clk 0:02:59]} 3. Nf3 {[%clk 0:02:57]}  Nf6 {[%clk 0:02:58]} 4. e3 {[%clk 0:02:57]}  e6 {[%clk 0:02:58]} 5. Bxc4 {[%clk 0:02:58]}  c5 {[%clk 0:02:58]} 6. O-O {[%clk 0:02:58]}  a6 {[%clk 0:02:58]} 7. Be2 {[%clk 0:02:58]}  b5 {[%clk 0:02:56]} 8. Ne5 {[%clk 0:02:58]}  Bb7 {[%clk 0:02:56]} 9. Bf3 {[%clk 0:02:57]}  Bxf3 {[%clk 0:02:55]} 10. Qxf3 {[%clk 0:02:56]}  Qd5 {[%clk 0:02:52]} 11. a4 {[%clk 0:02:41]}  b4 {[%clk 0:02:44]} 12. Qxd5 {[%clk 0:02:07]}  exd5 {[%clk 0:02:38]} 13. dxc5 {[%clk 0:02:06]}  Bxc5 {[%clk 0:02:38]} 14. Nd2 {[%clk 0:02:07]}  Nbd7 {[%clk 0:02:37]} 15. Nxd7 {[%clk 0:01:57]}  Kxd7 {[%clk 0:02:37]} 16. Nb3 {[%clk 0:01:57]}  Bb6 {[%clk 0:02:34]} 17. a5 {[%clk 0:01:56]}  Ba7 {[%clk 0:02:34]} 18. Bd2 {[%clk 0:01:56]}  Rab8 {[%clk 0:02:33]} 19. Rfc1 {[%clk 0:01:56]}  Rhc8 {[%clk 0:02:33]} 20. Rxc8 {[%clk 0:01:49]}  Rxc8 {[%clk 0:02:30]} 21. Bxb4 {[%clk 0:01:12]}  Rc2 {[%clk 0:02:18]} 22. Bc3 {[%clk 0:01:02]}  Ne4 {[%clk 0:02:18]} 23. Bxg7 {[%clk 0:01:00]}  Rxf2 {[%clk 0:02:14]} 24. Re1 {[%clk 0:00:48]}  f6 {[%clk 0:02:06]} 25. Nd4 {[%clk 0:00:23]}  Rxb2 {[%clk 0:02:01]} 26. Rf1 {[%clk 0:00:21]}  Bxd4 {[%clk 0:01:58]} 27. exd4 {[%clk 0:00:21]}  Ke6 {[%clk 0:01:58]} 28. Rc1 {[%clk 0:00:21]}  Kd7 {[%clk 0:01:42]} 29. h3 {[%clk 0:00:19]}  Ra2 {[%clk 0:01:37]} 30. Rb1 {[%clk 0:00:18]}  Rxa5 {[%clk 0:01:36]} 31. Rb7+ {[%clk 0:00:19]}  Ke6 {[%clk 0:01:36]} 32. Bh6 {[%clk 0:00:18]}  Ra1+ {[%clk 0:01:34]} 33. Kh2 {[%clk 0:00:19]}  a5 {[%clk 0:01:32]} 34. Rxh7 {[%clk 0:00:18]}  a4 {[%clk 0:01:32]} 35. Ra7 {[%clk 0:00:18]}  a3 {[%clk 0:01:31]} 36. Bf8 {[%clk 0:00:18]}  a2 {[%clk 0:01:30]} 37. h4 {[%clk 0:00:10]}  Nc3 {[%clk 0:01:15]} 38. Bb4 {[%clk 0:00:10]}  Nb5 {[%clk 0:01:15]} 39. Ra6+ {[%clk 0:00:10]}  Kf5 {[%clk 0:01:15]} 40. h5 {[%clk 0:00:11]}  Rb1 {[%clk 0:01:09]} 41. h6 {[%clk 0:00:03]}  Kg6 {[%clk 0:01:04]} 42. Rxa2 {[%clk 0:00:02]}  Rxb4 {[%clk 0:01:03]} 43. Ra6 {[%clk 0:00:02]}  Rxd4 {[%clk 0:01:00]} 44. Kg3 {[%clk 0:00:01]}  Kxh6 {[%clk 0:00:50]} 45. Rxf6+ {[%clk 0:00:01]}  Kg5 {[%clk 0:00:51]} 46. Rb6 {[%clk 0:00:01]}  Nc3 {[%clk 0:00:48]} 47. Kf2 {[%clk 0:00:02]}  Kf5 {[%clk 0:00:47]} 48. Rc6 {[%clk 0:00:02]}  Ne4+ {[%clk 0:00:44]} 49. Ke3 {[%clk 0:00:02]}  Rc4 {[%clk 0:00:44]} 50. g4+ {[%clk 0:00:01]}  Ke5 {[%clk 0:00:44]} 0-1


[Site "https://www.chess.com"]